[Event "AUT-ch U18 Boys 2022"]
[Site "Sankt Veit an der Glan"]
[Date "2022.04.12"]
[Round "4.1"]
[White "Kristoferitsch, Daniel"]
[Black "Schernthaner, David"]
[Result "1-0"]
[ECO "B00"]
[WhiteElo "2253"]
[BlackElo "2213"]
[Annotator "RC"]
[PlyCount "55"]
[EventDate "2022.04.11"]
[EventType "swiss"]
[EventCountry "AUT"]
[SourceTitle "playchess.com"]
[Source "ChessBase"]
[SourceQuality "1"]
[TimeControl "5400+30"]

1. e4 {[%emt 0:00:04]} d6 {[%emt 0:00:11]} 2. c4 {[%emt 0:01:07]} c5 {[%emt 0:00:19]} 3. Ne2 {[%emt 0:01:43]} Nc6 {[%emt 0:04:26]} 4. d4 {[%emt 0:02:43]} cxd4 {[%emt 0:00:21]} 5. Nxd4 {[%emt 0:00:06]} g6 {[%emt 0:00:22]} 6. Be2 {[%emt 0:03:51]} Bg7 {[%emt 0:00:12]} 7. Nc2 {[%emt 0:00:07]} Nf6 {[%emt 0:03:58]} 8. Nc3 {[%emt 0:00:07]} O-O {[%emt 0:00:22]} 9. O-O {[%emt 0:02:43]} Be6 {[%emt 0:07:56]} 10. Be3 {[%emt 0:10:01]} Qa5 {[%emt 0:09:40]} 11. Rc1 {[%emt 0:16:55]} Rfc8 {[%emt 0:14:10]} 12. f4 {[%emt 0:00:17]} Nb4 {[%emt 0:13:02]} 13. Nxb4 {[%emt 0:12:37]} Qxb4 {[%emt 0:00:04]} 14. b3 {[%emt 0:00:10]} Qa5 {[%emt 0:13:41]} 15. Qd3 {[%emt 0:02:13]} a6 {[%emt 0:01:58]} 16. Na4 {[%emt 0:09:52]} Re8 {[%emt 0:12:44]} 17. Nb6 {[%emt 0:04:23]} Rad8 {[%emt 0:01:37]} 18. h3 {[%emt 0:08:28]} Nd7 {[%emt 0:02:17]} 19. b4 {[%emt 0:02:04]} Qxb4 {[%emt 0:04:08]} 20. Rb1 {[%emt 0:00:07]} Qc3 {[%emt 0:01:44]} 21. Qxc3 {[%emt 0:01:18]} Bxc3 {[%emt 0:00:01]} 22. f5 {[%emt 0:00:10]} Nc5 {[%emt 0:03:29]} 23. fxe6 {[%emt 0:00:40]} fxe6 {[%emt 0:00:01]} 24. Bg4 {[%emt 0:02:40]} Nxe4 {[%emt 0:00:19]} 25. Bxe6+ {[%emt 0:00:11]} Kg7 {[%emt 0:00:04]} 26. Rf7+ {[%emt 0:00:53]} Kh8 {[%emt 0:00:04]} 27. Nd5 {[%emt 0:00:38]} Nf6 {[%emt 0:01:05]} 28. Nxc3 {[%emt 0:00:20]} 1-0

[Event "AUT-ch U18 Boys 2022"]
[Site "Sankt Veit an der Glan"]
[Date "2022.04.12"]
[Round "4.2"]
[White "Cafasso, Elia"]
[Black "Stadlinger, Matthias"]
[Result "0-1"]
[ECO "B07"]
[WhiteElo "2061"]
[BlackElo "2013"]
[Annotator "NA RC"]
[PlyCount "210"]
[EventDate "2022.04.11"]
[EventType "swiss"]
[EventCountry "AUT"]
[SourceTitle "playchess.com"]
[Source "ChessBase"]
[SourceQuality "1"]
[TimeControl "5400+30"]

1. e4 {[%emt 0:00:04]} d6 {[%emt 0:00:04]} 2. d4 {[%emt 0:00:05]} Nf6 {[%emt 0:00:03]} 3. Nc3 {[%emt 0:00:32]} Nbd7 {[%emt 0:00:05]} 4. f4 {[%emt 0:01:00]} e5 {[%emt 0:00:05]} 5. Nf3 {[%emt 0:01:49]} exd4 {[%emt 0:00:06]} 6. Qxd4 {[%emt 0:03:56]} c6 {[%emt 0:00:07]} 7. Be3 {[%emt 0:07:32]} d5 {[%emt 0:00:15]} 8. exd5 {[%emt 0:03:25]} Bc5 {[%emt 0:00:17]} 9. Qd3 {[%emt 0:00:11]} Qe7 {[%emt 0:00:09]} 10. Kd2 {[%emt 0:01:49]} O-O {[%emt 0:12:15]} 11. Re1 {[%emt 0:02:12]} Bxe3+ {[%emt 0:04:31]} 12. Rxe3 {[%emt 0:08:23]} Qb4 {[%emt 0:00:20]} 13. Qc4 {[%emt 0:01:40]} Qxb2 {[%emt 0:06:17]} 14. Bd3 {[%emt 0:05:19]} cxd5 {[%emt 0:19:14]} 15. Nxd5 {[%emt 0:02:11]} Nxd5 {[%emt 0:02:59]} 16. Qxd5 {[%emt 0:00:04]} Qb4+ {[%emt 0:01:55]} 17. Ke2 {[%emt 0:05:06]} Nf6 {[%emt 0:02:23]} 18. Qc4 {[%emt 0:15:15]} Qb6 {[%emt 0:05:51]} 19. f5 {[%emt 0:14:05]} Bd7 {[%emt 0:06:15]} 20. Re1 {[%emt 0:05:51]} Rae8 {[%emt 0:15:58]} 21. Rxe8 {[%emt 0:07:35]} Rxe8+ {[%emt 0:00:06]} 22. Kd1 {[%emt 0:00:12]} Rxe1+ {[%emt 0:03:07]} 23. Nxe1 {[%emt 0:02:13]} Bc6 {[%emt 0:01:17]} 24. Qf4 {[%emt 0:01:09]} h6 {[%emt 0:02:21]} 25. h4 {[%emt 0:02:26]} Qb1+ {[%emt 0:02:20]} 26. Kd2 {[%emt 0:00:25]} Qxa2 {[%emt 0:00:47]} 27. g4 {[%emt 0:00:38]} Qa4 {[%emt 0:05:44]} 28. c4 {[%emt 0:02:51]} Qb4+ {[%emt 0:03:06]} 29. Ke2 {[%emt 0:01:32]} Qe7+ {[%emt 0:00:04]} 30. Kd2 {[%emt 0:00:08]} Ne4+ {[%emt 0:00:40]} 31. Bxe4 {[%emt 0:00:28]} Qxe4 {[%emt 0:00:25]} 32. Qxe4 {[%emt 0:00:03]} Bxe4 {[%emt 0:00:04]} 33. Ke3 {[%emt 0:00:02]} Bc6 {[%emt 0:00:37]} 34. Nc2 {[%emt 0:01:20]} Kf8 {[%emt 0:00:54]} 35. g5 {[%emt 0:00:24]} hxg5 {[%emt 0:01:21]} 36. hxg5 {[%emt 0:00:09]} f6 {[%emt 0:00:47]} 37. gxf6 {[%emt 0:01:20]} gxf6 {[%emt 0:00:17]} 38. c5 {[%emt 0:00:09]} Ke7 {[%emt 0:02:18]} 39. Kd3 {[%emt 0:01:31]} Kd7 {[%emt 0:00:31]} 40. Kc4 {[%emt 0:00:12]} Be4 {[%emt 0:00:51]} 41. Nd4 {[%emt 0:00:02]} Bb1 {[%emt 0:00:47]} 42. Kb4 {[%emt 0:00:19]} Be4 {[%emt 0:00:58]} 43. Kc4 {[%emt 0:00:11]} Ke7 {[%emt 0:00:35]} 44. Nb5 {[%emt 0:01:18]} Bxf5 {[%emt 0:01:25]} 45. Nd6 {[%emt 0:00:05]} Be6+ {[%emt 0:00:25]} 46. Kd4 {[%emt 0:01:07]} b6 {[%emt 0:00:28]} 47. Nb5 {[%emt 0:00:14]} bxc5+ {[%emt 0:00:25]} 48. Kxc5 {[%emt 0:00:01]} a5 {[%emt 0:00:55]} 49. Nc3 {[%emt 0:01:15]} Bb3 {[%emt 0:00:21]} 50. Ne2 {[%emt 0:02:59]} a4 {[%emt 0:00:36]} 51. Kb4 {[%emt 0:00:08]} Kd6 {[%emt 0:00:35]} 52. Nd4 {[%emt 0:02:44]} Ke5 {[%emt 0:00:25]} 53. Kc3 {[%emt 0:00:02]} Bd5 {[%emt 0:00:51]} 54. Ne2 {[%emt 0:00:55]} a3 {[%emt 0:01:04]} 55. Ng3 {[%emt 0:00:21]} Kd6 {[%emt 0:00:22]} 56. Kc2 {[%emt 0:00:12]} Kc5 {[%emt 0:00:34]} 57. Kc3 {[%emt 0:00:11]} Kd6 {[%emt 0:00:44]} 58. Kc2 {[%emt 0:00:09]} Ke7 {[%emt 0:00:20]} 59. Nf5+ {[%emt 0:00:43]} Kf7 {[%emt 0:00:11]} 60. Kc3 {[%emt 0:00:18]} Be6 {[%emt 0:00:21]} 61. Nd4 {[%emt 0:01:47]} Ke7 {[%emt 0:00:26]} 62. Kc2 {[%emt 0:00:11]} Bg8 {[%emt 0:01:06]} 63. Nb5 {[%emt 0:00:34]} a2 {[%emt 0:00:24]} 64. Kb2 {[%emt 0:00:01]} f5 {[%emt 0:00:22]} 65. Nd4 {[%emt 0:00:48]} f4 {[%emt 0:00:06]} 66. Ka1 {[%emt 0:00:18]} Kf6 {[%emt 0:00:21]} 67. Kb2 {[%emt 0:00:28]} Bd5 {[%emt 0:00:37]} 68. Ne2 {[%emt 0:00:36]} f3 {[%emt 0:00:13]} 69. Nc3 {[%emt 0:00:21]} Ke5 {[%emt 0:00:54]} 70. Nd1 {[%emt 0:00:03]} Kd4 {[%emt 0:01:02]} 71. Nf2 {[%emt 0:00:30]} Be6 {[%emt 0:00:13]} 72. Nh1 {[%emt 0:00:47]} Ke3 {[%emt 0:00:20]} 73. Ka1 {[%emt 0:00:03]} Ke2 {[%emt 0:00:36]} 74. Kb2 {[%emt 0:00:18]} Kf1 {[%emt 0:00:28]} 75. Ng3+ {[%emt 0:00:01]} Kg2 {[%emt 0:00:10]} 76. Ne4 {[%emt 0:00:27]} Bd5 {[%emt 0:00:15]} 77. Nc3 {[%emt 0:00:13]} Bb3 {[%emt 0:01:10]} 78. Ne4 {[%emt 0:00:20]} Bd5 {[%emt 0:00:38]} 79. Nc3 {[%emt 0:00:02]} Bc4 {[%emt 0:00:48]} 80. Ne4 {[%emt 0:00:16]} Bd3 {[%emt 0:00:13]} 81. Nc3 {[%emt 0:00:04]} Bb1 {[%emt 0:00:40]} 82. Nd1 {[%emt 0:00:10]} Kf1 {[%emt 0:00:23]} 83. Ne3+ {[%emt 0:00:59]} Ke2 {[%emt 0:00:15]} 84. Ng4 {[%emt 0:00:25]} Bf5 {[%emt 0:01:08]} 85. Nh2 {[%emt 0:00:04]} f2 {[%emt 0:00:03]} 86. Kxa2 {[%emt 0:00:03]} Bh3 {[%emt 0:00:45]} 87. Kb2 {[%emt 0:00:02]} Ke3 {[%emt 0:00:18]} 88. Kc2 {[%emt 0:00:04]} Kf4 {[%emt 0:00:16]} 89. Kd2 {[%emt 0:00:04]} Kg3 {[%emt 0:00:09]} 90. Ke2 {[%emt 0:00:03]} Kg2 {[%emt 0:00:23]} 91. Ke3 {[%emt 0:00:12]} Bg4 {[%emt 0:00:34]} 92. Nxg4 {[%emt 0:01:53]} f1=Q {[%emt 0:00:10]} 93. Ne5 {[%emt 0:00:04]} Qe1+ {[%emt 0:00:14]} 94. Kd4 {[%emt 0:00:03]} Kg3 {[%emt 0:00:32]} 95. Nd3 {[%emt 0:00:07]} Qe8 {[%emt 0:00:14]} 96. Nb4 {[%emt 0:00:16]} Kf4 {[%emt 0:00:33]} 97. Nd5+ {[%emt 0:00:06]} Kf3 {[%emt 0:00:07]} 98. Nc3 {[%emt 0:00:12]} Qd7+ {[%emt 0:00:23]} 99. Nd5 {[%emt 0:00:04]} Qd6 {[%emt 0:00:28]} 100. Kc4 {[%emt 0:00:03]} Ke4 {[%emt 0:00:16]} 101. Nc3+ {[%emt 0:00:06]} Ke5 {[%emt 0:00:11]} 102. Kb5 {[%emt 0:00:14]} Qc7 {[%emt 0:00:38]} 103. Kb4 {[%emt 0:00:11]} Qc8 {[%emt 0:00:19]} 104. Na4 {[%emt 0:00:10]} Kd4 {[%emt 0:00:18]} 105. Ka5 {[%emt 0:00:20]} Qb7 {[%emt 0:00:49]} 0-1

[Event "AUT-ch U18 Boys 2022"]
[Site "Sankt Veit an der Glan"]
[Date "2022.04.12"]
[Round "4.3"]
[White "Blasge, Tobias"]
[Black "Tumanyan, Gor"]
[Result "1-0"]
[ECO "A57"]
[WhiteElo "1736"]
[BlackElo "1818"]
[Annotator "NA RC"]
[PlyCount "63"]
[EventDate "2022.04.11"]
[EventType "swiss"]
[EventCountry "AUT"]
[SourceTitle "playchess.com"]
[Source "ChessBase"]
[SourceQuality "1"]
[TimeControl "5400+30"]

1. d4 {[%emt 0:00:03]} Nf6 {[%emt 0:00:10]} 2. c4 {[%emt 0:00:03]} a6 {[%emt 0:00:02]} 3. Nc3 {[%emt 0:05:48]} c5 {[%emt 0:00:09]} 4. d5 {[%emt 0:00:20]} b5 {[%emt 0:00:07]} 5. cxb5 {[%emt 0:03:56]} axb5 {[%emt 0:00:04]} 6. Nxb5 {[%emt 0:02:44]} Qa5+ {[%emt 0:00:05]} 7. Nc3 {[%emt 0:00:06]} Bb7 {[%emt 0:00:04]} 8. Bd2 {[%emt 0:02:29]} Qb6 {[%emt 0:00:55]} 9. e4 {[%emt 0:03:26]} e6 {[%emt 0:02:03]} 10. Nf3 {[%emt 0:08:48]} exd5 $14 {[%emt 0:11:08]} 11. exd5 {[%emt 0:00:05]} Nxd5 {[%emt 0:05:47]} 12. Bc4 {[%emt 0:02:40]} Qe6+ {[%emt 0:19:02]} 13. Ne2 {[%emt 0:05:35]} Ba6 {[%emt 0:33:42]} 14. Bxd5 {[%emt 0:22:26]} Qxd5 {[%emt 0:00:19]} 15. O-O {[%emt 0:00:17]} Be7 {[%emt 0:06:49]} 16. Re1 {[%emt 0:01:03]} Bxe2 {[%emt 0:06:14]} 17. Qxe2 {[%emt 0:04:28]} Nc6 {[%emt 0:01:04]} 18. b4 {[%emt 0:13:08]} O-O {[%emt 0:03:00]} 19. b5 {[%emt 0:01:44]} Nd4 {[%emt 0:00:04]} 20. Qxe7 {[%emt 0:14:15]} Nxf3+ {[%emt 0:00:02]} 21. gxf3 {[%emt 0:00:07]} Qxd2 {[%emt 0:00:05]} 22. Qxc5 {[%emt 0:00:44]} Rxa2 {[%emt 0:01:26]} 23. Rxa2 {[%emt 0:01:04]} Qxa2 {[%emt 0:00:22]} 24. b6 {[%emt 0:01:43]} Qd2 {[%emt 0:05:20]} 25. Rc1 {[%emt 0:01:54]} d6 {[%emt 0:02:26]} 26. Qc6 {[%emt 0:00:19]} Qg5+ {[%emt 0:00:38]} 27. Kf1 {[%emt 0:02:46]} Qd2 {[%emt 0:01:48]} 28. b7 {[%emt 0:00:58]} Qd3+ {[%emt 0:00:48]} 29. Kg1 {[%emt 0:00:18]} Qg6+ {[%emt 0:00:07]} 30. Kh1 {[%emt 0:00:13]} Qf5 {[%emt 0:00:13]} 31. Qc8 {[%emt 0:00:59]} Qxf3+ {[%emt 0:00:43]} 32. Kg1 {[%emt 0:00:04]} 1-0

[Event "AUT-ch U18 Boys 2022"]
[Site "Sankt Veit an der Glan"]
[Date "2022.04.12"]
[Round "4.4"]
[White "Loreth, Thomas"]
[Black "Ilijic, Mihajilo"]
[Result "0-1"]
[ECO "B10"]
[WhiteElo "1628"]
[BlackElo "2079"]
[Annotator "RC"]
[PlyCount "88"]
[EventDate "2022.04.11"]
[EventType "swiss"]
[EventCountry "AUT"]
[SourceTitle "playchess.com"]
[Source "ChessBase"]
[SourceQuality "1"]
[TimeControl "5400+30"]

1. e4 {[%emt 0:00:02]} c6 {[%emt 0:00:08]} 2. Nc3 {[%emt 0:00:03]} d5 {[%emt 0:00:10]} 3. Nf3 {[%emt 0:00:02]} dxe4 {[%emt 0:00:09]} 4. Nxe4 {[%emt 0:00:07]} Nf6 {[%emt 0:00:10]} 5. Qe2 {[%emt 0:00:04]} Nxe4 {[%emt 0:00:19]} 6. Qxe4 {[%emt 0:00:04]} Qa5 {[%emt 0:00:05]} 7. b4 {[%emt 0:00:11]} Qd5 {[%emt 0:03:40]} 8. Qe3 {[%emt 0:00:46]} Qe6 {[%emt 0:00:46]} 9. Bb2 {[%emt 0:00:32]} f6 {[%emt 0:05:29]} 10. Bd3 {[%emt 0:05:36]} Qxe3+ {[%emt 0:01:21]} 11. dxe3 {[%emt 0:00:18]} e5 {[%emt 0:00:14]} 12. a3 {[%emt 0:00:27]} Be6 {[%emt 0:01:32]} 13. Rd1 {[%emt 0:00:52]} Nd7 {[%emt 0:01:29]} 14. O-O {[%emt 0:00:26]} Nb6 {[%emt 0:00:40]} 15. Nd2 {[%emt 0:01:08]} Be7 {[%emt 0:04:22]} 16. Ne4 {[%emt 0:01:45]} Nc4 {[%emt 0:04:36]} 17. Bc1 {[%emt 0:01:29]} b6 {[%emt 0:04:33]} 18. Nd2 {[%emt 0:00:51]} Nxd2 {[%emt 0:05:20]} 19. Rxd2 {[%emt 0:00:42]} O-O-O {[%emt 0:01:14]} 20. Rfd1 {[%emt 0:02:21]} Kc7 {[%emt 0:04:27]} 21. Bb2 {[%emt 0:01:09]} a5 {[%emt 0:07:37]} 22. bxa5 {[%emt 0:00:28]} bxa5 {[%emt 0:00:05]} 23. Bc3 {[%emt 0:01:14]} Ra8 {[%emt 0:00:24]} 24. a4 {[%emt 0:00:18]} Bb4 {[%emt 0:01:09]} 25. Bxb4 {[%emt 0:00:26]} axb4 {[%emt 0:00:06]} 26. Ra1 {[%emt 0:00:23]} Rhd8 {[%emt 0:02:50]} 27. Rdd1 {[%emt 0:00:37]} f5 {[%emt 0:03:08]} 28. f3 {[%emt 0:02:26]} c5 {[%emt 0:02:03]} 29. Bb5 {[%emt 0:00:06]} c4 {[%emt 0:04:07]} 30. Kf2 {[%emt 0:01:07]} Kb6 {[%emt 0:01:08]} 31. Ke2 {[%emt 0:01:14]} Kc5 {[%emt 0:01:35]} 32. h3 {[%emt 0:02:02]} f4 {[%emt 0:01:33]} 33. e4 {[%emt 0:03:06]} g5 {[%emt 0:08:38]} 34. Rxd8 {[%emt 0:03:22]} Rxd8 {[%emt 0:00:06]} 35. Rd1 {[%emt 0:00:06]} Rxd1 {[%emt 0:04:16]} 36. Kxd1 {[%emt 0:00:16]} c3 {[%emt 0:01:02]} 37. Kc1 {[%emt 0:00:57]} b3 {[%emt 0:00:32]} 38. Be8 {[%emt 0:02:47]} Kb4 {[%emt 0:01:33]} 39. Bc6 {[%emt 0:00:10]} b2+ {[%emt 0:00:49]} 40. Kb1 {[%emt 0:00:11]} Bc4 {[%emt 0:00:10]} 41. Bb7 {[%emt 0:03:26]} Kxa4 {[%emt 0:01:04]} 42. Bc6+ {[%emt 0:00:05]} Kb4 {[%emt 0:00:12]} 43. Bb7 {[%emt 0:00:05]} Bf1 {[%emt 0:00:13]} 44. Bc8 {[%emt 0:00:18]} h5 {[%emt 0:00:17]} 0-1

[Event "AUT-ch U18 Boys 2022"]
[Site "Sankt Veit an der Glan"]
[Date "2022.04.12"]
[Round "4.5"]
[White "Lotz, Dominik"]
[Black "Pribozic, Manuel"]
[Result "1/2-1/2"]
[ECO "B22"]
[WhiteElo "1583"]
[BlackElo "1543"]
[Annotator "NA RC"]
[PlyCount "61"]
[EventDate "2022.04.11"]
[EventType "swiss"]
[EventCountry "AUT"]
[SourceTitle "playchess.com"]
[Source "ChessBase"]
[SourceQuality "1"]
[TimeControl "5400+30"]

1. e4 {[%emt 0:00:02]} c5 {[%emt 0:00:49]} 2. c3 {[%emt 0:00:02]} Nc6 {[%emt 0:02:37]} 3. Nf3 {[%emt 0:00:03]} d6 {[%emt 0:04:33]} 4. d4 {[%emt 0:00:55]} cxd4 {[%emt 0:02:21]} 5. cxd4 {[%emt 0:00:36]} e6 {[%emt 0:02:18]} 6. Nc3 {[%emt 0:00:35]} Nf6 {[%emt 0:01:18]} 7. Bd3 {[%emt 0:00:50]} Be7 {[%emt 0:01:57]} 8. Bg5 {[%emt 0:00:45]} O-O {[%emt 0:00:59]} 9. Rc1 {[%emt 0:00:22]} a6 {[%emt 0:02:46]} 10. O-O {[%emt 0:00:21]} h6 {[%emt 0:05:19]} 11. Bh4 {[%emt 0:01:07]} Nxe4 {[%emt 0:06:10]} 12. Bxe7 {[%emt 0:02:47]} Nxc3 {[%emt 0:00:52]} 13. Bxd8 {[%emt 0:03:04]} Nxd1 {[%emt 0:00:08]} 14. Bc7 {[%emt 0:00:15]} Nxb2 {[%emt 0:05:14]} 15. Be2 {[%emt 0:00:03]} d5 {[%emt 0:20:24]} 16. Rc2 {[%emt 0:00:20]} Na4 {[%emt 0:06:11]} 17. Rb1 {[%emt 0:00:31]} f6 {[%emt 0:08:18]} 18. Bd1 {[%emt 0:02:22]} Na7 {[%emt 0:03:45]} 19. Rcc1 {[%emt 0:05:41]} b5 {[%emt 0:00:22]} 20. Rb4 {[%emt 0:02:13]} Bd7 {[%emt 0:02:10]} 21. Bxa4 {[%emt 0:02:41]} bxa4 {[%emt 0:00:02]} 22. Rb7 {[%emt 0:00:03]} Bb5 {[%emt 0:01:43]} 23. Rb6 {[%emt 0:04:44]} Rfe8 {[%emt 0:04:26]} 24. h3 {[%emt 0:01:34]} Rac8 {[%emt 0:01:34]} 25. Rb7 {[%emt 0:01:35]} Nc6 {[%emt 0:00:04]} 26. Bf4 {[%emt 0:00:13]} e5 {[%emt 0:00:53]} 27. dxe5 {[%emt 0:00:07]} fxe5 {[%emt 0:00:01]} 28. Nxe5 {[%emt 0:00:30]} Nxe5 {[%emt 0:00:42]} 29. Rxc8 {[%emt 0:00:12]} Nf3+ {[%emt 0:00:07]} 30. gxf3 {[%emt 0:00:12]} Rxc8 {[%emt 0:00:02]} 31. Be5 {[%emt 0:03:06]} 1/2-1/2

[Event "AUT-ch U18 Boys 2022"]
[Site "Sankt Veit an der Glan"]
[Date "2022.04.12"]
[Round "4.6"]
[White "Buchegger, Fridolin"]
[Black "Koestner, Laurin"]
[Result "1-0"]
[ECO "E06"]
[WhiteElo "2010"]
[BlackElo "1746"]
[Annotator "RC"]
[PlyCount "77"]
[EventDate "2022.04.11"]
[EventType "swiss"]
[EventCountry "AUT"]
[SourceTitle "playchess.com"]
[Source "ChessBase"]
[SourceQuality "1"]
[TimeControl "5400+30"]

1. d4 {[%emt 0:00:03]} Nf6 {[%emt 0:00:07]} 2. c4 {[%emt 0:00:07]} e6 {[%emt 0:00:03]} 3. Nf3 {[%emt 0:00:13]} d5 {[%emt 0:00:01]} 4. g3 {[%emt 0:00:11]} Be7 {[%emt 0:00:29]} 5. Bg2 {[%emt 0:00:07]} O-O {[%emt 0:00:07]} 6. O-O {[%emt 0:00:12]} dxc4 {[%emt 0:00:03]} 7. Qc2 {[%emt 0:00:56]} a6 {[%emt 0:00:02]} 8. a4 {[%emt 0:07:40]} Bd7 {[%emt 0:02:33]} 9. Ne5 {[%emt 0:01:26]} Bc6 {[%emt 0:00:03]} 10. Nxc6 {[%emt 0:08:55]} Nxc6 {[%emt 0:00:03]} 11. Bxc6 {[%emt 0:00:12]} bxc6 {[%emt 0:00:17]} 12. a5 {[%emt 0:07:49]} Qxd4 {[%emt 0:10:01]} 13. Ra4 {[%emt 0:00:05]} Rfd8 {[%emt 0:20:44]} 14. Rxc4 {[%emt 0:01:29]} Qd5 {[%emt 0:00:44]} 15. Bd2 {[%emt 0:01:12]} Rab8 {[%emt 0:11:24]} 16. Rc1 {[%emt 0:02:01]} Qh5 {[%emt 0:04:20]} 17. f3 {[%emt 0:05:52]} c5 {[%emt 0:10:04]} 18. Nc3 {[%emt 0:14:48]} Nd5 {[%emt 0:03:46]} 19. Ne4 {[%emt 0:01:06]} Rb5 {[%emt 0:18:51]} 20. Nxc5 {[%emt 0:02:30]} Rdb8 {[%emt 0:00:01]} 21. Nd3 {[%emt 0:02:03]} Bd6 {[%emt 0:05:45]} 22. Kg2 {[%emt 0:06:12]} f5 {[%emt 0:01:16]} 23. e4 {[%emt 0:06:17]} fxe4 {[%emt 0:02:25]} 24. Rxe4 {[%emt 0:00:15]} Rf8 {[%emt 0:00:09]} 25. Rf1 {[%emt 0:01:47]} Qg6 {[%emt 0:02:05]} 26. Qd1 {[%emt 0:06:07]} h5 {[%emt 0:00:40]} 27. Qe2 {[%emt 0:00:35]} Rb3 {[%emt 0:01:34]} 28. Be3 {[%emt 0:06:55]} h4 {[%emt 0:01:49]} 29. Bd4 {[%emt 0:03:27]} hxg3 {[%emt 0:01:00]} 30. Rg4 {[%emt 0:02:07]} Qxg4 {[%emt 0:01:36]} 31. fxg4 {[%emt 0:00:15]} Rxf1 {[%emt 0:00:17]} 32. Kxf1 {[%emt 0:06:56]} gxh2 {[%emt 0:01:49]} 33. Qxe6+ {[%emt 0:00:15]} Kh7 {[%emt 0:00:03]} 34. Nf2 {[%emt 0:00:38]} Rb5 {[%emt 0:01:18]} 35. Qe4+ {[%emt 0:01:22]} Kg8 {[%emt 0:00:05]} 36. Qe8+ {[%emt 0:01:14]} Kh7 {[%emt 0:00:06]} 37. Qf7 {[%emt 0:00:40]} Be5 {[%emt 0:01:07]} 38. Qf5+ {[%emt 0:00:39]} Kg8 {[%emt 0:00:12]} 39. Qxe5 {[%emt 0:00:17]} 1-0

[Event "AUT-ch U18 Boys 2022"]
[Site "Sankt Veit an der Glan"]
[Date "2022.04.12"]
[Round "4.7"]
[White "Martetschlaeger, Stefan"]
[Black "Marte, Lukas"]
[Result "0-1"]
[ECO "C45"]
[WhiteElo "1679"]
[BlackElo "1614"]
[Annotator "NA RC"]
[PlyCount "120"]
[EventDate "2022.04.11"]
[EventType "swiss"]
[EventCountry "AUT"]
[SourceTitle "playchess.com"]
[Source "ChessBase"]
[SourceQuality "1"]
[TimeControl "5400+30"]

1. e4 {[%emt 0:00:05]} e5 {[%emt 0:00:04]} 2. Nf3 {[%emt 0:00:07]} Nc6 {[%emt 0:00:04]} 3. d4 {[%emt 0:00:12]} exd4 {[%emt 0:01:26]} 4. Nxd4 {[%emt 0:00:15]} Bc5 {[%emt 0:02:46]} 5. Nb3 {[%emt 0:00:39]} Bb6 {[%emt 0:00:07]} 6. Nc3 {[%emt 0:00:41]} d6 {[%emt 0:01:45]} 7. Qe2 {[%emt 0:00:43]} Nge7 {[%emt 0:05:03]} 8. Be3 {[%emt 0:01:37]} Be6 {[%emt 0:04:38]} 9. O-O-O {[%emt 0:02:12]} Qd7 {[%emt 0:00:13]} 10. g3 {[%emt 0:01:16]} O-O-O {[%emt 0:03:42]} 11. Bxb6 {[%emt 0:01:04]} axb6 {[%emt 0:00:16]} 12. Bg2 {[%emt 0:01:07]} f5 {[%emt 0:05:12]} 13. f4 {[%emt 0:06:15]} fxe4 {[%emt 0:04:40]} 14. Nxe4 {[%emt 0:03:02]} Bg4 {[%emt 0:05:05]} 15. Bf3 {[%emt 0:00:19]} Bxf3 {[%emt 0:00:28]} 16. Qxf3 {[%emt 0:00:12]} Rhf8 {[%emt 0:01:17]} 17. Nd4 {[%emt 0:05:51]} Rde8 {[%emt 0:04:07]} 18. Qa3 {[%emt 0:03:37]} Nb8 {[%emt 0:08:21]} 19. Rhe1 {[%emt 0:05:15]} Nf5 {[%emt 0:03:39]} 20. Nxf5 Qxf5 {[%emt 0:03:24]} 21. Qd3 {[%emt 0:12:27]} Qa5 {[%emt 0:04:46]} 22. Qc4 {[%emt 0:05:59]} Nc6 {[%emt 0:02:57]} 23. Re3 {[%emt 0:05:24]} Qf5 {[%emt 0:06:53]} 24. Rde1 {[%emt 0:06:35]} Kd7 {[%emt 0:03:42]} 25. Qc3 {[%emt 0:13:14]} Qg6 {[%emt 0:05:19]} 26. Ng5 {[%emt 0:04:55]} Rxe3 {[%emt 0:05:30]} 27. Rxe3 {[%emt 0:01:00]} Re8 {[%emt 0:00:47]} 28. h4 {[%emt 0:04:13]} h6 {[%emt 0:00:53]} 29. h5 {[%emt 0:02:15]} Rxe3 {[%emt 0:02:03]} 30. Qxe3 {[%emt 0:00:29]} Qf6 {[%emt 0:00:11]} 31. Ne4 {[%emt 0:01:09]} Qf5 {[%emt 0:01:37]} 32. Qf3 {[%emt 0:01:39]} d5 {[%emt 0:05:12]} 33. Nc3 {[%emt 0:01:31]} Nb4 {[%emt 0:01:17]} 34. Qd1 {[%emt 0:00:28]} Kc6 {[%emt 0:01:50]} 35. a3 {[%emt 0:00:28]} Na6 {[%emt 0:00:41]} 36. Qe2 {[%emt 0:00:54]} Qf7 {[%emt 0:00:58]} 37. Qe5 {[%emt 0:01:35]} Nc5 {[%emt 0:01:35]} 38. Ne2 {[%emt 0:00:42]} Ne4 {[%emt 0:00:26]} 39. Nd4+ {[%emt 0:00:56]} Kd7 {[%emt 0:00:06]} 40. Nb5 {[%emt 0:00:52]} Kd8 {[%emt 0:00:38]} 41. c4 {[%emt 0:01:10]} c6 {[%emt 0:00:40]} 42. Qb8+ {[%emt 0:00:33]} Ke7 {[%emt 0:00:44]} 43. Qxb7+ {[%emt 0:00:15]} Kf8 {[%emt 0:00:17]} 44. Qc8+ {[%emt 0:00:53]} Qe8 {[%emt 0:00:45]} 45. Qf5+ {[%emt 0:00:26]} Qf7 {[%emt 0:00:11]} 46. Qc8+ {[%emt 0:00:06]} Qe8 {[%emt 0:00:04]} 47. Qf5+ {[%emt 0:02:06]} Qf7 {[%emt 0:00:07]} 48. Nd4 {[%emt 0:00:47]} Nxg3 {[%emt 0:01:05]} 49. Qc8+ {[%emt 0:00:50]} Qe8 {[%emt 0:01:05]} 50. Ne6+ {[%emt 0:00:52]} Kf7 {[%emt 0:00:17]} 51. Qxe8+ {[%emt 0:01:20]} Kxe8 {[%emt 0:00:07]} 52. Nxg7+ {[%emt 0:00:06]} Kf7 {[%emt 0:00:10]} 53. cxd5 {[%emt 0:01:50]} cxd5 {[%emt 0:00:14]} 54. b4 {[%emt 0:00:48]} Kxg7 {[%emt 0:00:19]} 55. a4 {[%emt 0:00:13]} Nxh5 {[%emt 0:00:41]} 56. a5 {[%emt 0:00:05]} bxa5 {[%emt 0:00:11]} 57. b5 {[%emt 0:00:43]} Nf6 {[%emt 0:00:30]} 58. Kd2 {[%emt 0:00:20]} Nd7 {[%emt 0:00:59]} 59. Kd3 {[%emt 0:00:19]} Nb6 {[%emt 0:00:07]} 60. Kd4 {[%emt 0:00:11]} a4 {[%emt 0:00:11]} 0-1

[Event "AUT-ch U18 Boys 2022"]
[Site "Sankt Veit an der Glan"]
[Date "2022.04.12"]
[Round "4.8"]
[White "Hechl, Fabian"]
[Black "Schilcher, Marcel"]
[Result "1-0"]
[ECO "B53"]
[WhiteElo "2023"]
[BlackElo "1671"]
[Annotator "RC"]
[PlyCount "37"]
[EventDate "2022.04.11"]
[EventType "swiss"]
[EventCountry "AUT"]
[SourceTitle "playchess.com"]
[Source "ChessBase"]
[SourceQuality "1"]
[TimeControl "5400+30"]

1. e4 {[%emt 0:00:03]} c5 {[%emt 0:00:07]} 2. Nf3 {[%emt 0:00:04]} d6 {[%emt 0:00:04]} 3. d4 {[%emt 0:00:03]} cxd4 {[%emt 0:00:06]} 4. Qxd4 {[%emt 0:00:03]} Nc6 {[%emt 0:01:53]} 5. Qe3 {[%emt 0:00:05]} g6 {[%emt 0:03:05]} 6. Be2 {[%emt 0:00:00]} Bg7 {[%emt 0:00:15]} 7. O-O {[%emt 0:00:00]} e6 {[%emt 0:04:17]} 8. Rd1 {[%emt 0:05:58]} Qc7 {[%emt 0:09:56]} 9. Na3 {[%emt 0:12:26]} a6 {[%emt 0:05:42]} 10. Nc4 {[%emt 0:01:30]} d5 {[%emt 0:07:15]} 11. exd5 {[%emt 0:01:55]} Nb4 {[%emt 0:00:12]} 12. d6 {[%emt 0:22:19]} Qd8 {[%emt 0:06:12]} 13. d7+ {[%emt 0:05:13]} Bxd7 {[%emt 0:00:04]} 14. Nd6+ {[%emt 0:00:07]} Kf8 {[%emt 0:00:31]} 15. Qf4 {[%emt 0:00:44]} Bf6 {[%emt 0:00:58]} 16. Nxf7 {[%emt 0:06:42]} Kxf7 {[%emt 0:00:47]} 17. Rxd7+ {[%emt 0:00:30]} Qxd7 {[%emt 0:00:17]} 18. Ne5+ {[%emt 0:00:04]} Ke7 {[%emt 0:00:13]} 19. Nxd7 {[%emt 0:00:10]} 1-0